bitfinex-derivatives/quotes_SOLF0:USTF0_20250829
["timestamp","ask_amount","ask_price","bid_price","bid_amount"]
[1756499659237,134.94272079,201.82,201.73,0.03741336]
[1756499659733,9.67036143,201.81,201.73,0.03741336]
[1756499660930,0.86272079,201.82,201.73,0.03741336]
[1756499661228,133.84,201.81,201.73,0.03741336]
[1756499661424,0.86272079,201.82,201.73,0.03741336]
[1756499661631,134.70272079,201.82,201.73,0.03741336]
[1756499662131,133.76,201.84,201.73,0.03741336]
[1756499662532,0.86269941,201.82,201.66,14.55036143]
[1756499662932,0.86269941,201.82,201.76,0.03200017]
[1756499663936,333.22,201.9,201.76,0.03200017]
[1756499664337,0.86249628,201.88,201.7,15.18352888]
[1756499664729,0.86249628,201.88,201.81,0.03304648]
[1756499665129,333.22,201.9,201.81,0.03304648]
[1756499665330,129.03073269,201.91,201.81,0.03304648]
[1756499665736,9.67036143,201.98,201.81,0.03304648]
[1756499665931,88.67950955,201.97,201.81,0.03304648]
[1756499666131,0.86213304,201.94,201.79,9.67036143]
[1756499666534,0.86213304,201.94,201.87,0.0366237]
[1756499670038,10.53249447,201.94,201.87,0.0366237]
[1756499670234,0.5,201.93,201.87,0.0366237]
[1756499670438,9.67036143,201.9,201.72,333.16]
[1756499670636,133.3,201.89,201.72,333.16]
[1756499671443,5.94059814,201.88,201.72,339.10059814]
[1756499671641,133.3,201.89,201.72,339.10059814]
[1756499671838,0.03779968,201.83,201.75,5.94059814]
[1756499672331,0.03779968,201.83,201.72,339.10059814]
[1756499673936,0.03779968,201.83,201.73,7.79]
[1756499674344,7.31,201.82,201.67,133.08]
[1756499674540,7.31,201.82,201.68,7.79]
[1756499674940,7.31,201.82,201.7,5.94059814]
[1756499675145,0.03397179,201.77,201.71,7.79]
[1756499675746,0.03397179,201.77,201.73,5.94059814]
[1756499675947,0.03397179,201.77,201.74,7.79]
[1756499676742,0.03397179,201.77,201.73,5.94059814]
[1756499676942,0.86213304,201.94,201.74,7.95]
[1756499677148,8.0,201.93,201.77,7.95]
[1756499677945,8.0,201.93,201.81,7.95]
[1756499679948,8.0,201.93,201.83,5.94059814]
[1756499680852,8.0,202.01,201.87,7.95]
[1756499681253,0.86190883,202.0,201.87,7.95]
[1756499682351,0.86190883,202.0,201.89,5.94059814]
[1756499683053,8.0,202.01,201.9,7.95]
[1756499683550,130.96,202.04,201.9,7.95]
[1756499684050,130.96,202.04,201.92,7.95]
[1756499684754,8.0,202.05,201.92,7.95]
[1756499685148,8.0,202.05,201.96,7.98322603]
[1756499687858,8.0,202.05,201.96,0.03322603]
[1756499688056,5.94059814,202.03,201.96,0.03322603]
[1756499688357,8.0,202.02,201.96,0.03322603]
[1756499689160,13.94059814,201.97,201.84,7.95]
[1756499690661,0.03276728,201.93,201.84,7.95]
[1756499691555,8.03276728,201.93,201.84,7.95]
[1756499692463,8.03276728,201.93,201.81,7.95]
[1756499692860,8.0,201.93,201.81,7.95]
[1756499693260,0.0377624,201.89,201.81,7.95]
[1756499693462,0.0377624,201.89,201.83,5.94059814]
[1756499693966,0.0377624,201.89,201.84,7.95]
[1756499694166,0.0377624,201.89,201.83,5.94059814]
[1756499694370,0.0377624,201.89,201.84,7.95]
[1756499694963,6.24e-05,201.89,201.86,5.94059814]
[1756499695173,8.0,202.04,201.87,8.45]
[1756499695469,8.0,202.04,201.92,13.89059814]
[1756499695669,8.0,202.04,201.95,5.94059814]
[1756499695863,8.0,202.04,201.96,7.95]
[1756499696064,0.86155674,202.11,201.96,7.95]
[1756499696266,0.86155674,202.11,201.96,13.89059814]
[1756499696267,8.0,202.1,201.96,13.89059814]
[1756499696466,8.0,202.1,201.98,0.03638683]
[1756499697870,8.0,202.1,201.99,7.95]
[1756499698066,8.0,202.1,201.99,13.89059814]
[1756499698670,8.0,202.1,202.02,0.03767572]
[1756499702067,5.94059814,202.06,201.88,332.82]
[1756499702374,8.0,202.02,201.88,340.77]
[1756499703369,0.03699392,201.97,201.88,340.77]
[1756499704072,0.03699392,201.97,201.89,5.94059814]
[1756499704467,0.03699392,201.97,201.88,340.77]
[1756499705976,8.0,201.96,201.8,7.95]
[1756499706274,8.0,201.94,201.81,85.4]
[1756499706471,8.0,201.91,201.81,85.4]
[1756499706776,0.03388527,201.9,201.81,85.4]
[1756499707373,0.03388527,201.9,201.82,7.58]
[1756499708571,0.03388527,201.9,201.79,132.3]
[1756499709076,7.53,201.92,201.79,132.3]
[1756499709279,0.03137827,201.87,201.79,132.3]
[1756499710370,7.56137827,201.87,201.78,7.58]
[1756499710569,7.56137827,201.87,201.72,7.58]
[1756499710570,13.47059814,201.86,201.72,7.58]
[1756499710872,0.03137827,201.87,201.67,7.58]
[1756499710873,7.53,201.81,201.67,7.58]
[1756499711069,7.53,201.81,201.67,90.12]
[1756499711369,5.94059814,201.96,201.71,5.94059814]
[1756499711370,0.03290859,201.76,201.71,5.94059814]
[1756499711571,0.03290859,201.76,201.75,7.58]
[1756499711775,7.53,201.87,201.75,7.58]
[1756499712073,0.03178522,201.78,201.75,7.58]
[1756499712581,7.53,201.87,201.75,7.58]
[1756499712777,0.03795367,201.79,201.74,48.08059814]
[1756499713577,0.03795367,201.79,201.75,7.58]
[1756499713778,0.03795367,201.79,201.74,48.08059814]
[1756499714182,0.03795367,201.79,201.75,7.58]
[1756499714684,0.03795367,201.79,201.74,42.14]
[1756499715179,0.03795367,201.79,201.75,7.58]
[1756499715372,0.03795367,201.79,201.74,42.14]
[1756499716084,0.03795367,201.79,201.75,7.58]
[1756499716283,0.03795367,201.79,201.74,42.14]
[1756499717083,0.03795367,201.79,201.75,7.58]
[1756499717576,0.03795367,201.79,201.74,42.14]
[1756499717778,0.03795367,201.79,201.68,7.58]
[1756499718584,0.03795367,201.79,201.7,7.58]
[1756499719885,0.03795367,201.79,201.73,7.58]
[1756499721179,0.03795367,201.79,201.78,13.52059814]
[1756499721387,5.367e-05,201.79,201.78,13.52059814]
[1756499721582,5.367e-05,201.79,201.78,7.58]
[1756499721782,5.367e-05,201.79,201.74,92.87247441]
[1756499722084,5.367e-05,201.79,201.75,7.58]
[1756499722783,5.367e-05,201.79,201.74,0.03247441]
[1756499723177,7.53,201.78,201.74,0.03247441]
[1756499723383,5.367e-05,201.79,201.74,0.03247441]
[1756499723678,7.53,201.78,201.74,0.03247441]
[1756499724282,5.367e-05,201.79,201.74,0.03247441]
[1756499724490,5.367e-05,201.79,201.74,7.61247441]
[1756499724684,5.367e-05,201.79,201.74,0.03247441]
[1756499725093,5.367e-05,201.79,201.75,7.58]
[1756499725789,5.367e-05,201.79,201.74,0.03247441]
[1756499725995,5.367e-05,201.79,201.75,7.58]
[1756499726190,5.367e-05,201.79,201.74,0.03247441]
[1756499726395,5.367e-05,201.79,201.74,7.61247441]
[1756499726691,5.367e-05,201.79,201.75,7.58]
[1756499727902,5.367e-05,201.79,201.74,0.03247441]
[1756499728304,5.367e-05,201.79,201.75,7.58]
[1756499728900,5.367e-05,201.79,201.74,0.03247441]
[1756499729502,5.367e-05,201.79,201.75,7.58]
[1756499729808,5.367e-05,201.79,201.74,0.03247441]
[1756499729994,5.367e-05,201.79,201.75,7.58]
[1756499730199,5.367e-05,201.79,201.74,0.03247441]
[1756499730396,5.367e-05,201.79,201.75,7.58]
[1756499730899,5.367e-05,201.79,201.74,0.03247441]
[1756499731106,5.367e-05,201.79,201.75,7.58]
[1756499731407,7.53005367,201.79,201.74,0.03247441]
[1756499731700,5.367e-05,201.79,201.74,0.03247441]
[1756499732211,7.53005367,201.79,201.74,0.03247441]
[1756499732499,5.367e-05,201.79,201.74,0.03247441]
[1756499732697,7.53005367,201.79,201.74,0.03247441]
[1756499733104,5.367e-05,201.79,201.74,0.03247441]
[1756499734004,7.53005367,201.79,201.74,0.03247441]
[1756499734301,5.367e-05,201.79,201.74,0.03247441]
[1756499737604,5.367e-05,201.79,201.74,7.85247441]
[1756499740603,5.367e-05,201.79,201.74,13.79307255]
[1756499741713,5.367e-05,201.79,201.75,7.82]
[1756499743817,5.367e-05,201.79,201.74,115.19247441]
[1756499744017,5.367e-05,201.79,201.75,7.82]
[1756499745018,5.367e-05,201.79,201.75,13.76059814]
[1756499745524,5.367e-05,201.79,201.75,7.82]
[1756499746323,5.367e-05,201.79,201.76,5.94059814]
[1756499746527,5.367e-05,201.79,201.77,7.82]
[1756499746821,7.81,201.88,201.77,7.82]
[1756499747026,7.81,201.88,201.8,7.82]
[1756499747926,7.81,201.92,201.8,7.82]
[1756499748128,7.81,201.92,201.82,0.03803842]
[1756499748521,7.81,201.92,201.83,7.82]
[1756499751433,332.78,201.99,201.83,7.82]
[1756499751621,11.35451939,201.98,201.83,7.82]
[1756499751929,3.54451939,201.97,201.83,7.82]
[1756499752130,3.54451939,201.97,201.88,0.03157101]
[1756499754030,7.81,201.98,201.88,0.03157101]
[1756499754424,7.81,201.98,201.89,7.82]
[1756499755628,7.81,202.05,201.89,7.82]
[1756499756537,7.81,202.05,201.95,0.03341135]
[1756499756936,7.81,201.97,201.81,5.94059814]
[1756499758135,0.03679265,201.91,201.81,5.94059814]
[1756499758434,0.03679265,201.91,201.82,7.82]
[1756499761633,0.03679265,201.91,201.85,7.82]
[1756499761827,0.03679265,201.91,201.85,139.84]
[1756499762032,7.81,201.98,201.85,139.84]
[1756499762426,0.03239302,201.9,201.85,132.02]
[1756499762632,0.03239302,201.9,201.86,7.82]
[1756499762932,0.03239302,201.9,201.85,132.02]
[1756499763134,0.03239302,201.9,201.86,7.82]
[1756499763333,0.03239302,201.9,201.84,5.94059814]
[1756499763533,0.03239302,201.9,201.85,7.82]
[1756499763839,0.03239302,201.9,201.84,13.76059814]
[1756499764338,0.03239302,201.9,201.84,145.76059814]
[1756499766739,0.03239302,201.9,201.84,139.82]
[1756499766941,0.03239302,201.9,201.84,145.76059814]
[1756499767636,0.03239302,201.9,201.85,7.86]
[1756499767938,0.03239302,201.9,201.84,145.80059814]
[1756499768134,0.03239302,201.9,201.8,13.80059814]
[1756499768334,0.03239302,201.9,201.8,7.86]
[1756499768537,7.7,201.89,201.78,332.94]
[1756499769335,0.03548697,201.86,201.78,332.94]
[1756499770238,7.7,201.85,201.78,332.94]
[1756499770435,7.7,201.85,201.69,8.26975117]
[1756499770436,0.03548697,201.86,201.71,13.80059814]
[1756499770642,7.7,201.85,201.72,129.06]
[1756499770841,5.94059814,201.87,201.72,129.06]
[1756499771346,0.03698396,201.81,201.72,129.06]
[1756499771841,0.03698396,201.81,201.71,7.86]
[1756499772047,7.7,201.8,201.67,7.86]
[1756499772850,7.73574034,201.76,201.67,7.86]
[1756499773849,7.73574034,201.76,201.66,464.82]
[1756499774148,7.7,201.75,201.66,131.98]
[1756499775245,7.7,201.75,201.62,7.86]
[1756499775851,5.94059814,201.74,201.62,7.86]
[1756499776046,7.7,201.7,201.57,7.86]
[1756499776857,0.03501648,201.66,201.57,7.86]
[1756499778053,0.03501648,201.66,201.6,7.86]
[1756499778254,0.03501648,201.66,201.6,132.0]
[1756499778563,0.03501648,201.66,201.6,137.94059814]
[1756499778757,7.7,201.65,201.54,7.86]
[1756499779055,7.7,201.62,201.5,7.86]
[1756499779455,0.03541531,201.58,201.45,257.51231789]
[1756499779654,7.7,201.57,201.45,257.51231789]
[1756499780265,0.03185222,201.53,201.45,257.51231789]
[1756499780457,0.03185222,201.53,201.45,251.57171975]
[1756499781263,0.03185222,201.53,201.45,199.73171975]
[1756499781462,0.03185222,201.53,201.45,7.86]
[1756499781960,7.73185222,201.53,201.41,7.86]
[1756499782464,7.7,201.53,201.41,7.86]
[1756499782662,0.03240496,201.49,201.41,7.86]
[1756499782864,0.03240496,201.49,201.42,7.86]
[1756499785367,0.03240496,201.49,201.44,5.94059814]
[1756499785761,0.03240496,201.49,201.45,7.86]
[1756499785966,0.03240496,201.49,201.47,7.86]
[1756499786167,0.03240496,201.49,201.46,132.08]
[1756499786866,7.7,201.62,201.48,7.86]
[1756499787661,7.7,201.62,201.5,5.94059814]
[1756499787867,5.94059814,201.66,201.51,7.86]
[1756499788171,7.7,201.67,201.54,7.89696785]
[1756499788570,7.7,201.67,201.54,7.86]
[1756499788968,338.98059814,201.69,201.58,0.03385703]
[1756499788969,7.7,201.65,201.58,0.03385703]
[1756499790072,7.7,201.7,201.58,5.97445517]
[1756499790763,7.7,201.7,201.59,22.86]
[1756499791572,7.7,201.7,201.62,0.03553276]
[1756499792775,7.7,201.77,201.63,7.86]
[1756499793269,5.94059814,201.75,201.58,13.80059814]
[1756499793572,7.7,201.71,201.68,0.03453975]
[1756499793772,5.94059814,201.72,201.68,0.03453975]
[1756499794768,7.7,201.71,201.68,0.03453975]
[1756499795271,5.94059814,201.72,201.68,0.03453975]
[1756499795573,7.7,201.71,201.68,0.03453975]
[1756499795766,5.94059814,201.72,201.68,0.03453975]
[1756499795970,7.7,201.74,201.68,0.03453975]
[1756499802873,5.94059814,201.78,201.68,0.03453975]
[1756499803177,8.02,201.79,201.68,0.03453975]
[1756499803573,8.02,201.79,201.69,7.59]
[1756499816273,8.02,201.79,201.68,0.03453975]
[1756499816478,8.02,201.74,201.68,0.03453975]
[1756499816881,8.02,201.74,201.62,5.94059814]
[1756499817076,333.3,201.81,201.63,7.59]
[1756499817284,8.02,201.79,201.7,7.59]
[1756499819388,8.02,201.76,201.69,0.03181076]
[1756499819580,8.02,201.73,201.69,0.03181076]
[1756499820280,3.71503157,201.71,201.69,0.03181076]
[1756499820482,8.02,201.7,201.57,11.30503157]
[1756499821383,8.02,201.7,201.57,7.59]
[1756499821687,0.03634301,201.66,201.57,7.59]
[1756499824788,0.03634301,201.66,201.59,7.59]
[1756499828281,7.99,201.65,201.53,7.77]
[1756499828481,5.94947507,201.64,201.53,7.77]
[1756499828686,7.99,201.63,201.53,7.77]
[1756499828984,0.03800038,201.61,201.53,7.77]
[1756499829981,0.03800038,201.61,201.53,13.71947507]
[1756499830183,0.03800038,201.61,201.56,5.94947507]
[1756499830986,0.03800038,201.61,201.57,7.77]
[1756499831388,0.03800038,201.61,201.56,143.30264252]
[1756499831684,0.03800038,201.61,201.59,5.94947507]
[1756499831881,7.99,201.72,201.6,7.77]
[1756499832389,7.99,201.72,201.6,13.28316745]
[1756499832585,7.99,201.72,201.63,7.77]
[1756499833281,7.99,201.72,201.65,0.03366112]
[1756499834290,7.99,201.76,201.65,0.03366112]
[1756499834789,7.99,201.76,201.66,7.77]
[1756499835586,333.3,201.81,201.69,7.77]
[1756499835587,7.99,201.8,201.69,7.77]
[1756499835891,7.99,201.8,201.71,5.94947507]
[1756499836392,7.99,201.8,201.73,0.03250034]
[1756499837982,5.94947507,201.74,201.56,13.28316745]
[1756499838182,7.99,201.69,201.56,7.77]
[1756499839987,0.0321714,201.65,201.56,7.77]
[1756499841793,13.93947507,201.64,201.53,5.51316745]
[1756499841992,13.93947507,201.64,201.51,13.28316745]
[1756499842191,13.93947507,201.64,201.51,7.77]
[1756499842698,7.99,201.64,201.52,5.94947507]
[1756499842899,7.99,201.64,201.54,7.77]
[1756499843193,0.0328088,201.6,201.54,7.77]
[1756499845390,0.0328088,201.6,201.5,7.77]
[1756499845993,5.94947507,201.58,201.47,5.51316745]
[1756499846198,7.99,201.57,201.45,7.77]
[1756499846798,0.03314017,201.53,201.45,7.77]
[1756499850097,0.03314017,201.53,201.48,7.77]
[1756499850402,0.03314017,201.53,201.45,7.77]
[1756499856918,0.03314017,201.53,201.47,5.94947507]
[1756499857620,0.03314017,201.53,201.48,7.3]
[1756499857918,0.03314017,201.53,201.43,131.72]
[1756499857919,0.03314017,201.53,201.51,7.3]
[1756499858614,0.03314017,201.53,201.5,5.94947507]
[1756499858813,0.03314017,201.53,201.43,131.72]
[1756499858814,0.03314017,201.53,201.51,7.3]
[1756499859013,0.03314017,201.53,201.47,13.24947507]
[1756499861117,0.03314017,201.53,201.47,7.3]
[1756499862818,0.03314017,201.53,201.43,7.3]
[1756499864318,0.03314017,201.53,201.47,5.94947507]
[1756499864626,0.03314017,201.53,201.48,7.3]
[1756499865132,0.03314017,201.53,201.47,5.94947507]
[1756499865426,0.03314017,201.53,201.48,7.3]
[1756499865629,0.03314017,201.53,201.47,13.24947507]
[1756499865926,0.03314017,201.53,201.47,7.3]
[1756499874931,0.03314017,201.53,201.41,7.3]
[1756499875320,13.61947507,201.55,201.41,7.3]
[1756499876031,13.61947507,201.55,201.43,7.3]
[1756499876233,0.03291535,201.5,201.43,7.3]
[1756499877332,0.03291535,201.5,201.43,11.02418371]
[1756499880130,0.03291535,201.5,201.43,7.3]
[1756499880531,0.03291535,201.5,201.49,7.3]
[1756499882841,7.67,201.65,201.49,7.8]
[1756499883040,3.72418371,201.64,201.53,11.02418371]
[1756499883338,3.72418371,201.64,201.54,7.3]
[1756499883831,7.67,201.63,201.54,7.3]
[1756499884240,5.35660117,201.73,201.61,3.72418371]
[1756499884241,7.67,201.73,201.61,3.72418371]
[1756499884532,7.67,201.73,201.65,3.72418371]
[1756499884743,7.67,201.73,201.66,7.3]
[1756499884928,11.39418371,201.77,201.67,0.03395038]
[1756499885234,3.72418371,201.82,201.69,7.3]
[1756499885539,7.67,201.81,201.71,3.72418371]
[1756499885928,7.67,201.81,201.74,0.03712557]
[1756499887043,7.67,201.89,201.74,3.76130928]
[1756499887333,7.67,201.86,201.75,7.32]
[1756499887539,7.67,201.86,201.78,7.32]
[1756499887737,7.67,201.86,201.78,7.35581812]
[1756499888132,7.67,201.86,201.78,0.03581812]
[1756499888734,5.93924437,201.84,201.78,0.03581812]
[1756499889238,7.67,201.83,201.72,7.32]
[1756499889435,7.67,201.83,201.79,0.03592204]
[1756499890130,5.93924437,201.84,201.79,0.03592204]
[1756499890336,7.67,201.83,201.79,0.03592204]
[1756499890729,5.93924437,201.84,201.79,0.03592204]
[1756499891331,7.67,201.83,201.79,0.03592204]
[1756499891636,5.93924437,201.84,201.79,0.03592204]
[1756499892039,7.67,201.83,201.79,0.03592204]
[1756499892231,5.93924437,201.84,201.79,0.03592204]
[1756499892436,7.67,201.83,201.79,0.03592204]
[1756499892636,5.93924437,201.84,201.79,0.03592204]
[1756499893038,7.67,201.83,201.79,0.03592204]
[1756499893832,5.93924437,201.84,201.79,0.03592204]
[1756499894337,7.67,201.91,201.79,0.03592204]
[1756499894735,7.67,201.91,201.77,7.32]
[1756499895141,5.93924437,201.89,201.83,0.03638182]
[1756499895536,5.93924437,201.86,201.83,0.03638182]
[1756499895748,7.67,201.85,201.72,7.32]
[1756499897444,7.70482586,201.81,201.72,7.32]
[1756499899041,0.03482586,201.81,201.72,13.25924437]
[1756499899244,0.03482586,201.81,201.73,7.32]
[1756499903041,7.70482586,201.81,201.73,7.32]
[1756499903548,0.03482586,201.81,201.73,7.32]
[1756499907154,7.67,201.95,201.86,0.03729644]
[1756499911849,7.67,201.93,201.86,0.03729644]
[1756499920359,7.67,201.93,201.86,7.93729644]
[1756499920657,7.54,201.98,201.86,7.93729644]
[1756499921254,7.54,201.98,201.86,7.9]
[1756499921455,7.54,201.98,201.9,0.03374382]
[1756499925454,5.93924437,201.96,201.9,0.03374382]
[1756499926456,7.54,201.95,201.9,0.03374382]
[1756499926660,5.93924437,201.96,201.9,0.03374382]
[1756499927056,7.54,201.95,201.9,0.03374382]
[1756499927752,5.93924437,201.96,201.9,0.03374382]
[1756499927962,7.54,201.95,201.9,0.03374382]
[1756499928663,5.93924437,201.96,201.9,0.03374382]
[1756499929166,7.54,201.95,201.9,0.03374382]
[1756499929364,7.54,201.94,201.9,0.03374382]
[1756499929561,7.54,201.9,201.75,7.9]
[1756499929772,3.70925169,201.83,201.75,7.9]
[1756499930166,7.54,201.85,201.75,7.9]
[1756499930563,7.54,201.85,201.75,11.60925169]
[1756499931367,7.54,201.85,201.75,7.9]
[1756499932268,0.03387728,201.82,201.76,5.93964272]
[1756499932569,0.03387728,201.82,201.77,7.9]
[1756499932763,7.54,201.9,201.77,7.9]
[1756499933371,0.03516985,201.86,201.77,7.9]
[1756499934469,0.03516985,201.86,201.79,5.93964272]
[1756499934674,0.03516985,201.86,201.8,7.9]
[1756499934874,7.54,201.9,201.8,7.9]
[1756499935174,0.03519323,201.85,201.79,5.93964272]
[1756499935475,0.03519323,201.85,201.8,7.9]
[1756499935671,0.03519323,201.85,201.79,5.93964272]
[1756499935975,0.03519323,201.85,201.8,7.9]
[1756499936276,0.03519323,201.85,201.79,5.93964272]
[1756499936476,0.03519323,201.85,201.8,7.9]
[1756499936676,0.03519323,201.85,201.79,5.93964272]
[1756499937268,0.03519323,201.85,201.8,7.9]
[1756499937472,0.03519323,201.85,201.79,5.93964272]
[1756499937776,0.03519323,201.85,201.8,7.9]
[1756499938767,0.03519323,201.85,201.79,5.93964272]
[1756499938971,0.03519323,201.85,201.8,7.9]
[1756499939170,0.03519323,201.85,201.79,5.93964272]
[1756499939368,0.03519323,201.85,201.8,7.9]
[1756499939972,0.03519323,201.85,201.79,5.93964272]
[1756499940172,0.03519323,201.85,201.79,7.9]
[1756499941972,0.03519323,201.85,201.74,13.41316745]
[1756499942172,0.03519323,201.85,201.62,188.30448833]
[1756499942173,7.54,201.84,201.7,7.9]
[1756499942574,5.93964272,201.82,201.7,7.9]
[1756499942874,13.47964272,201.89,201.72,7.9]
[1756499943079,13.47964272,201.89,201.74,5.93964272]
[1756499943379,0.03413397,201.78,201.74,5.93964272]
[1756499943574,7.54,201.86,201.78,7.9]
[1756499944178,7.54,201.86,201.75,7.9]
[1756499944780,0.03364555,201.83,201.75,7.9]
[1756499945182,7.54,201.82,201.71,7.9]
[1756499946180,0.0322012,201.79,201.71,7.9]
[1756499946781,0.0322012,201.79,201.71,13.83964272]
[1756499947383,0.0322012,201.79,201.71,7.9]
[1756499951487,7.68,201.78,201.67,13.40316745]
[1756499951689,7.68,201.78,201.67,7.89]
[1756499952779,0.03364602,201.75,201.67,7.89]
[1756499952977,0.03364602,201.75,201.67,5.51316745]
[1756499953178,0.03364602,201.75,201.69,5.93964272]
[1756499953391,0.03364602,201.75,201.74,7.89]
[1756499957291,7.68,201.86,201.74,8.39]
[1756499957493,7.68,201.86,201.76,3.71313409]
[1756499958190,7.68,201.86,201.77,7.89]
[1756499958583,7.68,201.86,201.79,0.03495379]
[1756499959185,7.68,201.86,201.79,3.74808788]
[1756499959488,340.6,201.9,201.8,7.89]
[1756499962587,340.6,201.9,201.82,3.71313409]
[1756499963286,340.6,201.9,201.84,0.03335594]
[1756499964493,7.68,201.99,201.85,7.89]
[1756499964688,3.71313409,201.88,201.84,0.03335594]
[1756499964896,7.68,201.84,201.72,11.60313409]
[1756499965091,3.71313409,201.82,201.68,13.40316745]
[1756499965292,7.68,201.75,201.65,5.51316745]
[1756499965491,7.68,201.75,201.65,13.40316745]
[1756499966194,0.03454066,201.72,201.65,7.89]
[1756499967094,0.03454066,201.72,201.65,13.40316745]
[1756499967596,7.68,201.71,201.62,193.81765578]
[1756499968596,0.03454066,201.72,201.63,7.89]
[1756499968792,0.03454066,201.72,201.63,5.51316745]
[1756499968989,0.03454066,201.72,201.66,5.94534088]
[1756499969195,0.03454066,201.72,201.69,7.89]
[1756499969497,0.03454066,201.72,201.66,5.51316745]
[1756499969790,0.03454066,201.72,201.65,138.17]
[1756499969996,0.03454066,201.72,201.65,143.68316745]
[1756499971295,0.03454066,201.72,201.65,149.62850833]
[1756499972104,0.03454066,201.72,201.65,138.17]
[1756499977107,7.78,201.71,201.61,7.32]
[1756499977308,7.78,201.71,201.61,137.56]
[1756499979609,0.03454066,201.72,201.62,7.32]
[1756499980610,0.03454066,201.72,201.63,130.22]
[1756499981811,0.03454066,201.72,201.62,7.32]
[1756499982013,7.78,201.71,201.62,137.52]
[1756499982202,7.78,201.71,201.62,7.32]
[1756499982407,13.72534088,201.71,201.62,7.32]
[1756499983603,7.78,201.71,201.62,7.32]
[1756499987513,3.71839875,201.7,201.62,7.32]
[1756499988421,7.78,201.66,201.6,463.18]
[1756499988715,7.78,201.66,201.6,130.18]
[1756499989115,0.0371546,201.65,201.6,130.18]
[1756499989311,0.0371546,201.65,201.61,7.32]
[1756499990118,0.0371546,201.65,201.6,130.18]
[1756499990323,0.0371546,201.65,201.61,7.32]
[1756499990712,0.0371546,201.65,201.6,130.18]
[1756499991123,0.0371546,201.65,201.61,7.32]
[1756499991319,0.0371546,201.65,201.6,130.18]
[1756499991918,0.0371546,201.65,201.61,7.32]
[1756499992119,0.0371546,201.65,201.6,130.18]
[1756499992717,0.0371546,201.65,201.61,7.32]
[1756499992922,0.0371546,201.65,201.6,130.18]
[1756499993121,7.8171546,201.65,201.53,7.32]
[1756499993318,3.71839875,201.62,201.53,7.32]
[1756499993519,11.49839875,201.62,201.53,7.32]
[1756499993714,3.71839875,201.63,201.53,7.32]
[1756499993915,0.03768884,201.6,201.53,7.32]
[1756499994837,0.03768884,201.6,201.56,7.32]
[1756499995727,0.03768884,201.6,201.57,7.32]
[1756499995924,0.03768884,201.6,201.56,130.12]
[1756499996126,0.03768884,201.6,201.58,3.71839875]
[1756499996328,0.03768884,201.6,201.59,7.32]
[1756499996525,7.78,201.69,201.59,7.32]
[1756499996726,3.71839875,201.71,201.61,3.71839875]
[1756499997028,3.71839875,201.71,201.62,7.32]
[1756499998029,7.78,201.73,201.64,0.03753518]
[1756499998925,7.78,201.73,201.65,7.32]
[1756499999123,3.71839875,201.77,201.65,7.32]
[1756499999324,11.49839875,201.77,201.66,3.71839875]
[1756499999726,11.49839875,201.77,201.67,7.32]
[1756499999925,3.71839875,201.68,201.59,7.32]
[1756500000323,7.78,201.67,201.55,11.03839875]
[1756500000832,18.59839875,201.8,201.54,130.08]
[1756500000833,3.71839875,201.69,201.59,7.32]
[1756500001228,0.03229859,201.66,201.59,7.32]
[1756500001929,0.03229859,201.66,201.51,5.51316745]
[1756500001930,3.75069734,201.66,201.51,5.51316745]
[1756500002126,11.49839875,201.63,201.53,7.32]
[1756500002331,3.71839875,201.6,201.53,7.32]
[1756500002832,3.75462288,201.6,201.53,7.32]
[1756500003035,11.53462288,201.6,201.53,7.32]
[1756500003433,11.53462288,201.6,201.48,7.32]
[1756500003931,11.49839875,201.6,201.48,7.32]
[1756500004127,0.03634691,201.56,201.48,7.32]